Cogmind - Beta 13 @@@ ROGUE MODE // 2024.04.30 @ 22:18:12 Player: satan5 Result: Smashed by cave-in Performance ------------- Evolutions (0) 0 Regions Visited (2) 400 Robots Destroyed (28) 140 Value Destroyed (801) 801 Prototype IDs (3) 60 Alien Tech Used (0) 0 Bonus (0) 0 TOTAL SCORE: 1401 Bonus ------- None Cogmind --------- Core Integrity 0/250 Matter 252/300 Energy 100/100 System Corruption 8% Temperature Cool (0) Movement Treading (160) Location -10/Subcaves Parts ------- > --- POWER (1) -------- (None) > --- PROPULSION (2) --- Spiked Treads Spiked Treads > --- UTILITY (2) ------ Large Storage Unit Gun Armor > --- WEAPON (2+2) ----- Subdweller Machine Gun Subdweller Machine Gun > --- INVENTORY (15) --- Improved Heat Sink Improved Terrain Scanner Makeshift Kinetic Plating Subdweller Laser Subdweller Laser Subdweller Beam Cannon Subdweller Machine Gun Subdweller Machine Gun Barrage Gun Battle Cannon Battle Cannon Subdweller Shrapnel Launcher Hammer Peak State ------------ > --- POWER ------------ Light Ion Engine > --- PROPULSION ------- Spiked Treads Spiked Treads > --- UTILITY ---------- Large Storage Unit Gun Armor > --- WEAPON ----------- Subdweller Beam Cannon Subdweller Beam Cannon > --- INVENTORY -------- Improved Heat Sink Improved Terrain Scanner Makeshift Kinetic Plating Subdweller Laser Subdweller Laser Subdweller Machine Gun Subdweller Machine Gun Subdweller Machine Gun Subdweller Machine Gun Barrage Gun Battle Cannon Battle Cannon Grenade Launcher Subdweller Shrapnel Launcher Hammer [Rating: 22] Favorites ----------- Power Light Ion Engine Engine Light Ion Engine Propulsion Light Treads Treads Light Treads Utility Large Storage Unit Device Improved Terrain Scanner Storage Large Storage Unit Protection Gun Armor Weapon Subdweller Beam Cannon Energy Gun Small Laser Energy Cannon Subdweller Beam Cannon Ballistic Gun Shotgun Launcher Grenade Launcher Impact Weapon Hammer Build | -11 -10 -10 ------- Run | Yrd Mat Sub Slots Evolved . | . . . Power . | . . . Propulsion . | . . . Utility . | . . . Weapon . | . . . Parts Attached 34 | 6 8 20 Power 3 | 1 1 1 Engine 3 | 1 1 1 Core . | . . . Reactor . | . . . Propulsion 5 | 2 1 2 Treads 5 | 2 1 2 Leg . | . . . Wheel . | . . . Hover . | . . . Flight . | . . . Utility 4 | 1 2 1 Device 1 | . 1 . Storage 2 | 1 1 . Processor . | . . . Hackware . | . . . Protection 1 | . . 1 Artifact . | . . . Weapon 22 | 2 4 16 Energy Gun 1 | 1 . . Energy Cannon 9 | . . 9 Ballistic Gun 7 | 1 2 4 Ballistic Cannon . | . . . Launcher 3 | . . 3 Special Weapon . | . . . Impact Weapon 2 | . 2 . Slashing Weapon . | . . . Piercing Weapon . | . . . Special Melee Weapon . | . . . Unidentified Prototypes 1 | . . 1 Parts Lost 6 | . . 6 Power 2 | . . 2 Propulsion 2 | . . 2 Utility . | . . . Weapon 2 | . . 2 Highest Loss Streak 3 | . . 3 To Critical Strikes . | . . . Average Slot Usage (%) 86 | . 84 86 Engine 12 | . 11 12 Treads 24 | . 25 24 Device 5 | . 4 5 Storage 12 | . 14 12 Protection 5 | . . 6 Energy Cannon 18 | . . 21 Ballistic Gun 4 | . 17 2 Naked Turns . | . . . Heaviest Build 43 | 11 30 43 Greatest Support 40 | 40 40 40 Greatest Overweight (x) 1 | 1 1 1 Average Overweight (x) . | . . . Largest Inventory Capacity 15 | 8 15 15 Average Capacity 14 | 7 14 15 Most Carried 15 | 7 15 15 Average Carried 13 | 3 10 14 Final Capacity 15 | 8 15 15 Final Carried 13 | 4 13 13 Class Distribution -------------------- 100% | Mutant Dominant Class ---------------- Mutant | -10/Materials Mutant | -10/Subcaves Resources | -11 -10 -10 ----------- Run | Yrd Mat Sub Matter Collected 702 | 269 122 311 Remotely . | . . . Salvage Created 855 | 87 197 571 Parts 61 | 8 12 41 Haulers Intercepted . | . . . Recyclers Shooed 2 | 1 1 . Parts Field Recycled . | . . . Retrieved Matter . | . . . Parts Self-Destructed 14 | . . 14 Prevented . | . . . Kills | -11 -10 -10 ------- Run | Yrd Mat Sub Combat Hostiles Destroyed 22 | . 5 17 Melee 2 | . 2 . Guns 6 | . 2 4 Cannons 10 | . . 10 AOE 2 | . . 2 Classes Destroyed 8 | 2 3 3 Tunneler 1 | 1 . . Recycler 2 | 1 1 . Turret 2 | . . 2 Watcher 1 | . 1 . Swarmer 6 | . 3 3 Grunt 2 | . 2 . Sentry 1 | . . 1 Subdweller 13 | . . 13 Best Kill Streak 3 | 2 3 3 Combat Bots Only 3 | . 3 3 Max Kills in Single Turn 2 | 1 1 2 Gunslinging . | . . . Exploded 1 | . . 1 Melee 1 | . 1 . Uniques/NPCs Destroyed . | . . . Combat | -11 -10 -10 -------- Run | Yrd Mat Sub Hostile Shots Fired 128 | . 21 107 Missed 55 | . 3 52 Damage Taken 1641 | . 156 1485 Core 269 | . 9 260 Absorbed by Shields . | . . . Core Remaining (%) 100 | 100 . . Volleys Fired 115 | 3 10 102 Largest 2 | 2 2 2 Hottest 160 | 60 60 160 Shots Fired 211 | 6 19 186 Gun 55 | 6 19 30 Cannon 149 | . . 149 Launcher 7 | . . 7 Special . | . . . Kinetic 49 | 3 16 30 Thermal 155 | 3 3 149 Explosive 7 | . . 7 Electromagnetic . | . . . Robot Hit Streak 19 | 2 7 19 Robot Miss Streak 5 | 1 3 5 Penetration Max . | . . . Secondary Targets 1 | . . 1 Max Gunslinging Chain 1 | . . 1 Shots Hit Robots 71 | 3 17 51 Core Hits 38 | 3 11 24 Critical Kills 1 | . . 1 Critical Parts Destroyed 1 | . 1 . Critical Strikes 2 | . 1 1 Meltdown 1 | . . 1 Destroy 1 | . 1 . Melee Attacks 18 | . 18 . Impact 18 | . 18 . Slashing . | . . . Piercing . | . . . Sneak Attacks . | . . . Combat Hostiles . | . . . Follow-up Attacks . | . . . Damage Inflicted 1941 | 31 322 1588 Guns 459 | 31 204 224 Cannons 913 | . . 913 Explosions 451 | . . 451 Melee 118 | . 118 . Ramming . | . . . Kinetic 439 | 11 204 224 Thermal 933 | 20 . 913 Explosive 451 | . . 451 Electromagnetic . | . . . Impact 118 | . 118 . Slashing . | . . . Piercing . | . . . Highest Corruption 8 | . . 8 Average Corruption 8 | . . 8 Corruption Purged . | . . . Corruption Blocked . | . . . Effects 1 | . . 1 Energy Discharges 1 | . . 1 Overload Shots . | . . . Overflow Damage 17 | . . 17 Projectiles 17 | . . 17 Explosions . | . . . Melee . | . . . Knockbacks . | . . . Impact . | . . . Kinetic . | . . . Secondary . | . . . Self-Inflicted Damage . | . . . Shots . | . . . Rammed . | . . . Targets Rammed . | . . . Kicked . | . . . Crushed . | . . . Highest Temperature 326 | . 22 326 Average Temperature 56 | . 13 57 Received Heat Transfer 261 | . 36 225 Siege Activations . | . . . Robots Corrupted . | . . . Combat Hostiles . | . . . Parts Fried 2 | . 2 . Impact Corruptions 1 | . 1 . Robots Melted 1 | . . 1 Combat Hostiles 1 | . . 1 Parts Melted 4 | . . 4 Heat Transferred 1271 | 50 . 1221 Parts Sabotaged . | . . . Parts Stolen . | . . . Parts Stripped . | . . . Power Chain Reactions . | . . . Alert | -11 -10 -10 ------- Run | Yrd Mat Sub Peak Influence 114 | 10 114 . Initial 6 | . 6 . Average 39 | 5 43 . Maximum Alert Level . | . . . Low Security (%) 100 | 100 100 . Level 1 . | . . . Level 2 . | . . . Level 3 . | . . . Level 4 . | . . . Level 5 . | . . . High Security . | . . . Max Security . | . . . Squads Dispatched . | . . . Investigation . | . . . Extermination . | . . . Reinforcement . | . . . Assault . | . . . Garrison . | . . . Intercept . | . . . Searches Triggered . | . . . Construction Impeded . | . . . Haulers Reinforced . | . . . Active Scanning Responses . | . . . Cargo Convoy Interrupts . | . . . Stealth | -11 -10 -10 --------- Run | Yrd Mat Sub Distress Signals . | . . . Communications Jammed . | . . . Distress Signals . | . . . Times Spotted 46 | . 7 39 Peak Tracking Total 3 | . 3 3 Tactical Retreats 5 | . . 5 Traps | -11 -10 -10 ------- Run | Yrd Mat Sub Traps Triggered 3 | . 1 2 Indirectly . | . . . Trap Hack Attempts . | . . . Triggered . | . . . Disarmed . | . . . Reprogrammed . | . . . Reused . | . . . Traps Extracted . | . . . Installed . | . . . Triggered . | . . . Machines | -11 -10 -10 ---------- Run | Yrd Mat Sub Machines Disabled 1 | . . 1 Max in Single Turn 1 | . . 1 Machines Repaired . | . . . Machines Dismantled . | . . . Machines Sabotaged . | . . . Overloaded Fab Kills . | . . . Hacking | -11 -10 -10 --------- Run | Yrd Mat Sub Machines Accessed 6 | . 6 . Terminals 6 | . 6 . Fabricators . | . . . Repair Stations . | . . . Recycling Units . | . . . Scanalyzers . | . . . Garrison Access . | . . . Total Hacks 19 | . 19 . Successful 14 | . 14 . Failed 5 | . 5 . Catastrophic . | . . . Database Lockouts . | . . . Manual 11 | . 11 . Terminals 19 | . 19 . Fabricators . | . . . Repair Stations . | . . . Recycling Units . | . . . Scanalyzers . | . . . Garrison Access . | . . . Terminal Hacks 6 | . 6 . Prototype ID Bank 1 | . 1 . Unreport Threat 1 | . 1 . Hauler Manifests 2 | . 2 . Zone Layout 2 | . 2 . Fabricator Hacks . | . . . Repair Station Hacks . | . . . Recycling Unit Hacks . | . . . Scanalyzer . | . . . Garrison Access Hacks . | . . . Unauthorized Hacks 8 | . 8 . Terminals 8 | . 8 . Track 3 | . 3 . Botnet 5 | . 5 . Fabricators . | . . . Repair Stations . | . . . Recycling Units . | . . . Scanalyzers . | . . . Garrison Access . | . . . Data Cores Recovered . | . . . Used . | . . . Hacking Detections 6 | . 6 . Full Trace Events . | . . . Feedback Events . | . . . Feedback Blocked . | . . . Robot Schematics Acquired . | . . . Robots Built . | . . . Authchips . | . . . Time . | . . . Total Robot Build Rating . | . . . Part Schematics Acquired . | . . . Parts Built . | . . . Authchips . | . . . Time . | . . . Total Part Build Rating . | . . . Parts Repaired . | . . . Time . | . . . Parts Recycled . | . . . Recycled Matter . | . . . Retrieved Matter . | . . . Retrieved Components . | . . . Parts Scanalyzed . | . . . Part Schematics Acquired . | . . . Parts Damaged . | . . . Bothacking | -11 -10 -10 ------------ Run | Yrd Mat Sub Used RIF Installer . | . . . Robots Hacked . | . . . Non-combat . | . . . Combat . | . . . Robot Hacks Applied . | . . . Relay Couplers Released . | . . . Fabnet Peak Effective % . | . . . Robots Rewired . | . . . Allies Hacked . | . . . Hacks Repelled . | . . . Allies | -11 -10 -10 -------- Run | Yrd Mat Sub Total Allies . | . . . Largest Group . | . . . Highest-Rated Group . | . . . Highest-Rated Ally . | . . . Total Orders . | . . . Ally Attacks . | . . . Total Damage . | . . . Kills . | . . . Allies Corrupted . | . . . Allies Melted . | . . . Intel | -11 -10 -10 ------- Run | Yrd Mat Sub Robot Analysis Total . | . . . Derelict Logs Recovered 2 | . . 2 Drone Launches . | . . . Drone Recoveries . | . . . Exploration | -11 -10 -10 ------------- Run | Yrd Mat Sub Turns Passed 4995 | 82 757 4156 Spaces Moved 2183 | 48 344 1791 Core 19 | 19 . . Treads 2164 | 29 344 1791 Legs . | . . . Wheels . | . . . Hover . | . . . Flight . | . . . Fastest Speed 50 | 50 160 160 Average Speed 200 | 122 172 208 Slowest Speed 260 | 160 240 260 Overloaded Moves . | . . . Propulsion Burnouts . | . . . Robots Hopped . | . . . Cave-ins Triggered 3 | . . 3 Exploration Rate (%) 53 | 6 59 95 Regions Visited 2 Branch Regions 1 Pre-discovered Areas 1 | . . 1 Known Exits Taken . | . . . Unknown Exits Taken 2 | 1 1 . Scrap Searched 17 | . . 17 Spaces Dug 36 | . 1 35 Terrain Destroyed 103 | . 1 102 Melee 1 | . 1 . Projectile 68 | . . 68 AOE 34 | . . 34 Terrain Rammed . | . . . Walls Destroyed . | . . . Machines Disabled . | . . . Actions | -11 -10 -10 --------- Run | Yrd Mat Sub Total 2549 | 65 457 2027 Wait 137 | . 62 75 Move 2179 | 47 343 1789 Hop . | . . . Pick Up 45 | 9 14 22 Fast Attach 1 | 1 . . Attach 15 | 5 4 6 Detach . | . . . Swap 18 | . 4 14 Drop 19 | . 2 17 Fire 115 | 3 10 102 Melee 18 | . 18 . Ram . | . . . Kick . | . . . Crush . | . . . Escape Stasis 2 | . . 2 Rewire . | . . . Trap . | . . . Miscellaneous . | . . . Route ------- -11/Scrapyard -10/Materials (discovered 3 exits: [*Mat x2] / [*Sub]) -10/Subcaves (discovered 3 exits: [*Mat x2] / [*Rec]) History --------- Turn | Location | Event 6 | -11/Scrapyard | Discovered new exit (range 15) 83 | -11/Scrapyard | Entered Materials 310 | -10/Materials | Build established: Mutant 348 | -10/Materials | Discovered new exit (range 11) 602 | -10/Materials | Discovered new exit (range 3) 836 | -10/Materials | Discovered new exit (range 3) 840 | -10/Materials | Entered Subcaves 852 | -10/Subcaves | Shifting Twisted Machinery released Spk. Treads 993 | -10/Subcaves | Learned location of 1 exit from Materials 1003 | -10/Subcaves | Discovered new exit (range 12) 1196 | -10/Subcaves | Shifting Twisted Machinery released Sub. Monowheel 1198 | -10/Subcaves | Shifting Twisted Machinery released Piercing Trap 1352 | -10/Subcaves | Learned location of Zion (-6) 1352 | -10/Subcaves | Met a Zionite searching for "candidates" 1442 | -10/Subcaves | Ambushed by Subdwellers from Twisted Machinery 1818 | -10/Subcaves | Discovered new exit (range 13) 2550 | -10/Subcaves | A Subdweller sparked back to life 2550 | -10/Subcaves | A Subdweller sparked back to life 2550 | -10/Subcaves | A Subdweller sparked back to life 2600 | -10/Subcaves | Found Prototype Protection 2601 | -10/Subcaves | Identified Gun Armor 2603 | -10/Subcaves | Attached Gun Armor, gained temporary slots: Weapon x2 2718 | -10/Subcaves | Learned 4 Materials zone layouts 3360 | -10/Subcaves | Discovered new exit (range 5) 4649 | -10/Subcaves | Core integrity fell below 50% 4943 | -10/Subcaves | Crushed by falling debris 4944 | -10/Subcaves | Core integrity fell below 20% 4946 | -10/Subcaves | Crushed by falling debris 4977 | -10/Subcaves | Lost 3 parts (1p2w) 4997 | -10/Subcaves | Crushed by falling debris 4997 | -10/Subcaves | Smashed by cave-in Last Messages --------------- Cannon, destroying it. 04943_ The unstable cave ceiling collapses. 04943_ Crushed by falling debris. 04946_ The unstable cave ceiling collapses. 04946_ Crushed by falling debris. 04946_ Lgt. Ion Engine destroyed. 04946_ System corrupted by crushing effect (+1). 04946_ Sub. Beam Cannon destroyed. 04946_ System corrupted by crushing effect (+2). 04946_ Sub. Beam Cannon destroyed. 04946_ System corrupted by crushing effect (+5). 04955_ System corrupted: Energy discharge (-20). 04980_ S-10 Pest destroyed. 04983_ Switching to secondary target: S-10 Pest. 04992_ S-10 Pest destroyed. 04995_ Acquired 14 matter. 04996_ The unstable cave ceiling collapses. 04996_ 9 Matter crushed. 04997_ The unstable cave ceiling collapses. 04997_ Crushed by falling debris. Map ----- +----------------------------------------------------+ | ???????????????# "" #######???# | | ???????#???????# ##????#??### | | ???????????????## ##???????### # | | ????????????????## ###?????????# #### | | ?????????????????##### #####??#?????# ###? | | ????????????????#???## #### ##???????# ### | | ????#??????????????#?# ## #???????## ## | | ??????????????#??##??# #???????## | | ?????????????????????# #?????#?# | | ?????????????#???????## #####?##????### ### | | ????????????????????? ## ##???????#??#??######?? | | ????????????????????? ####???????#?????????????? | | ??????????????#?????? ?????????????????????#???? | | ???????????????????? ? ????#?#??????????????#??? | | ?????????????????#???? ?#??????????#???????????? | | ?????????????????????? ????????????????????????? | | ?????????????????????? ????#???????????????????? | | ?????????????????#????? ??#??#??????????????????? | | ??????????????????????? ??????#??????????????#?? | | ????????????????##????? ????#?????#?????????????? | | ??????????????????????? ##??????????????#???#???? | | ??????????????????#????# #??????????#??????????#? | | ?????????????##????????# #???#??????#??##?????#?? | | ??????????????????????## ##????????#????????????? | | ??????????????#??#???### ##???#?????#?#?????????? | | ?????????????????????#?#@=#??????????????##?????? | | ?????????????????????###=%##?#???????#??#????##?? | | ?????????????????#####" ##???#?##????#?#?#??### | | ????????????#????# "" # ##?????#?#?#??#???## # | | ??????????????#??## ###??????########?# | | ??????????????????###### ##???????#""" "### | | ??????????????#????????#### ##??###?# ## | | ????????????#???????????# #??????# ## | | ????????????????????????# ### #####?##"" % | | ?????????????##???#??#?###?### # ###< % | | ???????????????#????#?## ### # ##?##"" %% # | | ????????????????#?????## ## #####" # # | | ???????????????????##### [## % #???#" ##### | | ???????????????????## [%#### #??##""" "#?#?# | | ???????????????????# # ##?## ###?########??## | | ?????????????#?????## #?# %#???####??????# | | ?????????????????### ### #####????#?#?## | | ?????????????????## ## ############# | | ?????????????????# ### % # # ## # | | ?????????????????#### #### | | ????????????#???#??## ### % % ! | | ????????????????#??## ## # # # # # ### # | | ?????????????????### ################# | | ????????????#?????# #????????????### | | ????????????#?????# ###????????#####" | +----------------------------------------------------+ Best States ------------- Heat Dissipation 25 Energy Generation 10 Energy Capacity 125 Matter Stores 300 Matter Capacity 300 Sight Range 16 Terrain Scan Range 16 Terrain Scan Density 10 Armor Coverage 60 Evasion (%) 50 Recoil Reduction 2 Item Schematics ----------------- None Robot Schematics ------------------ None Fabricated ------------ Nothing Alien Tech Used ----------------- None Achievements -------------- None Challenges ------------ None Game ------ Seed MappingWarpBlaster Manual? 0 Play Time 00:21:01 Cumulative 163.7 hours Start 2024.04.30 @ 21:58:42 End 2024.04.30 @ 22:18:12 Sessions 1 Manual Loads 0 Difficulty Rogue Special Mode None Game No. 66 Rogue 52 Adventurer 14 Explorer 0 Win Type - Total 11 Types 9/0/0/1/0/0/0/0/1 Lore% 62 Gallery% 75 Achievement% 63 Wizard Run 0 Options --------- Layout 2 ASCII 0 Keyboard 0 Movement Mouse Keybinds 0 Fullscreen 1 Font 20/SmallcapsGlow Map View 50x44 Zoom Use 0% Tactical HUD 1 Map Filters NONE Filters NONE Steam 1 RUN: 8cea9b52-d013-48a8-97d3-f8112457ff95